[Event "Titled Tuesday Blitz April 19 Late 2022"]
[White "Caruana, Fabiano"]
[Black "Kozak, Adam"]
[WhiteFideId "2020009"]
[BlackFideId "753246"]
[WhiteElo "2744"]
[BlackElo "2459"]
[Result "1-0"]
[Round "11"]
[TimeControl "180+1"]
[Date "2022.04.19"]
[WhiteClock "0:00:22"]
[BlackClock "0:00:03"]

1. d4 {[%clk 0:03:00]}  Nf6 {[%clk 0:02:52]} 2. c4 {[%clk 0:03:01]}  e6 {[%clk 0:02:52]} 3. Nc3 {[%clk 0:03:01]}  Bb4 {[%clk 0:02:50]} 4. e3 {[%clk 0:03:02]}  O-O {[%clk 0:02:47]} 5. a3 {[%clk 0:03:02]}  Bxc3+ {[%clk 0:02:45]} 6. bxc3 {[%clk 0:03:03]}  c5 {[%clk 0:02:46]} 7. Bd3 {[%clk 0:03:03]}  b6 {[%clk 0:02:46]} 8. Nf3 {[%clk 0:03:04]}  Bb7 {[%clk 0:02:46]} 9. O-O {[%clk 0:03:03]}  d6 {[%clk 0:02:46]} 10. Re1 {[%clk 0:02:58]}  Ne4 {[%clk 0:02:45]} 11. Nd2 {[%clk 0:02:49]}  Nxd2 {[%clk 0:02:43]} 12. Bxd2 {[%clk 0:02:50]}  Nd7 {[%clk 0:02:40]} 13. e4 {[%clk 0:02:46]}  e5 {[%clk 0:02:40]} 14. d5 {[%clk 0:02:46]}  Bc8 {[%clk 0:02:35]} 15. a4 {[%clk 0:02:46]}  a5 {[%clk 0:02:34]} 16. Rb1 {[%clk 0:02:42]}  Rb8 {[%clk 0:02:30]} 17. h3 {[%clk 0:02:37]}  Qe7 {[%clk 0:02:28]} 18. g3 {[%clk 0:02:35]}  Re8 {[%clk 0:02:25]} 19. Kg2 {[%clk 0:02:32]}  Nf8 {[%clk 0:02:25]} 20. h4 {[%clk 0:02:31]}  Bd7 {[%clk 0:02:24]} 21. Bc2 {[%clk 0:02:28]}  Ng6 {[%clk 0:02:13]} 22. h5 {[%clk 0:02:24]}  Nh8 {[%clk 0:02:13]} 23. Rb2 {[%clk 0:02:16]}  f6 {[%clk 0:02:04]} 24. Qe2 {[%clk 0:02:10]}  Rb7 {[%clk 0:02:00]} 25. Reb1 {[%clk 0:02:10]}  Reb8 {[%clk 0:01:59]} 26. f4 {[%clk 0:02:01]}  h6 {[%clk 0:01:56]} 27. Qf3 {[%clk 0:01:57]}  Nf7 {[%clk 0:01:56]} 28. Kh2 {[%clk 0:01:57]}  Qe8 {[%clk 0:01:56]} 29. Qd1 {[%clk 0:01:55]}  Qc8 {[%clk 0:01:55]} 30. Qf1 {[%clk 0:01:48]}  Bg4 {[%clk 0:01:42]} 31. Bd1 {[%clk 0:01:47]}  Qd7 {[%clk 0:01:40]} 32. Bxg4 {[%clk 0:01:40]}  Qxg4 {[%clk 0:01:40]} 33. Qd1 {[%clk 0:01:41]}  Qd7 {[%clk 0:01:33]} 34. Kg2 {[%clk 0:01:39]}  Qe8 {[%clk 0:01:28]} 35. Qc2 {[%clk 0:01:26]}  Nd8 {[%clk 0:01:21]} 36. Rh1 {[%clk 0:01:26]}  Nf7 {[%clk 0:01:20]} 37. Rbb1 {[%clk 0:01:26]}  Kh8 {[%clk 0:01:13]} 38. Ra1 {[%clk 0:01:25]}  Kg8 {[%clk 0:01:13]} 39. Qd3 {[%clk 0:01:25]}  Re7 {[%clk 0:01:12]} 40. Rhe1 {[%clk 0:01:24]}  Nd8 {[%clk 0:01:11]} 41. Qf3 {[%clk 0:01:24]}  Nf7 {[%clk 0:01:11]} 42. Ra2 {[%clk 0:01:20]}  Qc8 {[%clk 0:01:10]} 43. Raa1 {[%clk 0:01:17]}  Qa6 {[%clk 0:01:10]} 44. Qd3 {[%clk 0:01:15]}  Qc8 {[%clk 0:01:11]} 45. Rab1 {[%clk 0:01:15]}  Qe8 {[%clk 0:01:11]} 46. Rb5 {[%clk 0:01:14]}  Kh8 {[%clk 0:01:09]} 47. Qf3 {[%clk 0:01:12]}  Kg8 {[%clk 0:01:09]} 48. Kf2 {[%clk 0:01:07]}  Kh8 {[%clk 0:01:09]} 49. Re2 {[%clk 0:00:56]}  Kg8 {[%clk 0:01:02]} 50. Bc1 {[%clk 0:00:55]}  Kh8 {[%clk 0:01:00]} 51. Ke1 {[%clk 0:00:55]}  Kg8 {[%clk 0:01:00]} 52. Kd1 {[%clk 0:00:55]}  Kh8 {[%clk 0:01:00]} 53. Bd2 {[%clk 0:00:55]}  Kg8 {[%clk 0:01:00]} 54. Re3 {[%clk 0:00:53]}  Kh8 {[%clk 0:00:58]} 55. Kc2 {[%clk 0:00:53]}  Kg8 {[%clk 0:00:57]} 56. Kd3 {[%clk 0:00:53]}  Kh8 {[%clk 0:00:52]} 57. Qg4 {[%clk 0:00:52]}  Kg8 {[%clk 0:00:49]} 58. Qf5 {[%clk 0:00:52]}  Kh8 {[%clk 0:00:47]} 59. Re1 {[%clk 0:00:51]}  Kg8 {[%clk 0:00:47]} 60. Reb1 {[%clk 0:00:51]}  Reb7 {[%clk 0:00:45]} 61. Qe6 {[%clk 0:00:48]}  Qd8 {[%clk 0:00:16]} 62. Rh1 {[%clk 0:00:47]}  Kf8 {[%clk 0:00:15]} 63. Rh4 {[%clk 0:00:46]}  Qe8 {[%clk 0:00:16]} 64. Rg4 {[%clk 0:00:44]}  Qxe6 {[%clk 0:00:14]} 65. dxe6 {[%clk 0:00:44]}  Nd8 {[%clk 0:00:14]} 66. f5 {[%clk 0:00:44]}  Nc6 {[%clk 0:00:14]} 67. Be3 {[%clk 0:00:31]}  Ne7 {[%clk 0:00:13]} 68. Ke2 {[%clk 0:00:31]}  Ra7 {[%clk 0:00:13]} 69. Rh4 {[%clk 0:00:32]}  Rab7 {[%clk 0:00:13]} 70. Rh1 {[%clk 0:00:32]}  Nc8 {[%clk 0:00:13]} 71. Rd1 {[%clk 0:00:32]}  Ke7 {[%clk 0:00:13]} 72. Kf3 {[%clk 0:00:32]}  Na7 {[%clk 0:00:14]} 73. Rb2 {[%clk 0:00:31]}  Nc8 {[%clk 0:00:14]} 74. Rh2 {[%clk 0:00:31]}  Kf8 {[%clk 0:00:14]} 75. Rh4 {[%clk 0:00:31]}  Rc7 {[%clk 0:00:14]} 76. Rg4 {[%clk 0:00:31]}  Rc6 {[%clk 0:00:14]} 77. Rg6 {[%clk 0:00:27]}  Ne7 {[%clk 0:00:12]} 78. g4 {[%clk 0:00:24]}  Rb7 {[%clk 0:00:07]} 79. Rh1 {[%clk 0:00:22]}  Rb8 {[%clk 0:00:04]} 80. Kg3 {[%clk 0:00:20]}  Rb7 {[%clk 0:00:04]} 81. Bd2 {[%clk 0:00:20]}  Nxg6 {[%clk 0:00:04]} 82. hxg6 {[%clk 0:00:20]}  Kg8 {[%clk 0:00:04]} 83. Be3 {[%clk 0:00:19]}  Rbc7 {[%clk 0:00:04]} 84. g5 {[%clk 0:00:19]}  fxg5 {[%clk 0:00:04]} 85. Kg4 {[%clk 0:00:19]}  Re7 {[%clk 0:00:03]} 86. Rb1 {[%clk 0:00:17]}  Re8 {[%clk 0:00:03]} 87. Rh1 {[%clk 0:00:18]}  Re7 {[%clk 0:00:04]} 88. Bxg5 {[%clk 0:00:18]}  hxg5 {[%clk 0:00:03]} 89. Kxg5 {[%clk 0:00:19]}  Rcc7 {[%clk 0:00:01]} 90. Rh7 {[%clk 0:00:19]}  Re8 {[%clk 0:00:02]} 91. Kg4 {[%clk 0:00:19]}  Ree7 {[%clk 0:00:02]} 92. Kg5 {[%clk 0:00:18]}  Re8 {[%clk 0:00:03]} 93. Kh4 {[%clk 0:00:19]}  Rce7 {[%clk 0:00:03]} 94. Kg4 {[%clk 0:00:19]}  Rxe6 {[%clk 0:00:04]} 95. fxe6 {[%clk 0:00:19]}  Rxe6 {[%clk 0:00:05]} 96. Kg5 {[%clk 0:00:19]}  Rf6 {[%clk 0:00:05]} 97. Rh1 {[%clk 0:00:20]}  Rf2 {[%clk 0:00:04]} 98. Rd1 {[%clk 0:00:20]}  Rg2+ {[%clk 0:00:04]} 99. Kf5 {[%clk 0:00:20]}  Rf2+ {[%clk 0:00:04]} 100. Ke6 {[%clk 0:00:20]}  Rf6+ {[%clk 0:00:04]} 101. Kd7 {[%clk 0:00:20]}  Rxg6 {[%clk 0:00:05]} 102. Kc6 {[%clk 0:00:21]}  Rf6 {[%clk 0:00:04]} 103. Kxb6 {[%clk 0:00:21]}  g5 {[%clk 0:00:05]} 104. Kxa5 {[%clk 0:00:21]}  Kg7 {[%clk 0:00:04]} 105. Kb5 {[%clk 0:00:21]}  Rf4 {[%clk 0:00:02]} 106. a5 {[%clk 0:00:21]}  Rf2 {[%clk 0:00:02]} 107. a6 {[%clk 0:00:21]}  Rb2+ {[%clk 0:00:02]} 108. Kc6 {[%clk 0:00:21]}  Ra2 {[%clk 0:00:02]} 109. Kb7 {[%clk 0:00:22]}  g4 {[%clk 0:00:03]} 110. Rg1 {[%clk 0:00:19]}  Rb2+ {[%clk 0:00:03]} 111. Kc7 {[%clk 0:00:19]}  Ra2 {[%clk 0:00:03]} 112. Rxg4+ {[%clk 0:00:20]}  Kf6 {[%clk 0:00:03]} 113. Kb7 {[%clk 0:00:20]}  Rb2+ {[%clk 0:00:03]} 114. Ka8 {[%clk 0:00:21]}  Rb3 {[%clk 0:00:02]} 115. a7 {[%clk 0:00:20]}  Ke7 {[%clk 0:00:03]} 116. Rg7+ {[%clk 0:00:20]}  Kd8 {[%clk 0:00:03]} 117. Rb7 {[%clk 0:00:21]}  Ra3 {[%clk 0:00:03]} 118. Kb8 {[%clk 0:00:22]} 1-0


[Site "https://www.chess.com"]

[Event "Titled Tuesday Blitz April 19 Late 2022"]
[White "Czopor, Maciej"]
[Black "Isajevsky, Anton"]
[WhiteFideId "21805431"]
[BlackFideId "4142500"]
[WhiteElo "1999"]
[BlackElo "2510"]
[Result "1-0"]
[Round "11"]
[TimeControl "180+1"]
[Date "2022.04.19"]
[WhiteClock "0:01:33"]
[BlackClock "0:00:10"]

1. d4 {[%clk 0:03:00]}  d5 {[%clk 0:02:54]} 2. c4 {[%clk 0:03:01]}  e6 {[%clk 0:02:54]} 3. Nc3 {[%clk 0:03:00]}  a6 {[%clk 0:02:54]} 4. cxd5 {[%clk 0:03:00]}  exd5 {[%clk 0:02:55]} 5. Bf4 {[%clk 0:03:00]}  Nf6 {[%clk 0:02:52]} 6. Nf3 {[%clk 0:03:00]}  Bd6 {[%clk 0:02:47]} 7. Bxd6 {[%clk 0:02:54]}  Qxd6 {[%clk 0:02:47]} 8. e3 {[%clk 0:02:55]}  Bf5 {[%clk 0:02:44]} 9. Be2 {[%clk 0:02:53]}  O-O {[%clk 0:02:43]} 10. O-O {[%clk 0:02:54]}  Nc6 {[%clk 0:02:43]} 11. a3 {[%clk 0:02:51]}  Rfe8 {[%clk 0:02:32]} 12. Rc1 {[%clk 0:02:50]}  Ne4 {[%clk 0:02:27]} 13. Qb3 {[%clk 0:02:41]}  Nxc3 {[%clk 0:02:00]} 14. Rxc3 {[%clk 0:02:42]}  Nd8 {[%clk 0:01:53]} 15. Rfc1 {[%clk 0:02:36]}  c6 {[%clk 0:01:53]} 16. Qb6 {[%clk 0:02:31]}  Re7 {[%clk 0:01:27]} 17. Ne5 {[%clk 0:02:05]}  f6 {[%clk 0:01:23]} 18. Nd3 {[%clk 0:02:05]}  Bxd3 {[%clk 0:01:22]} 19. Bxd3 {[%clk 0:02:06]}  Qc7 {[%clk 0:00:40]} 20. Qb3 {[%clk 0:01:57]}  Nf7 {[%clk 0:00:36]} 21. Qxd5 {[%clk 0:01:51]}  Rd8 {[%clk 0:00:32]} 22. Qf5 {[%clk 0:01:39]}  h6 {[%clk 0:00:12]} 23. g3 {[%clk 0:01:39]}  Rd5 {[%clk 0:00:10]} 24. Qxd5 {[%clk 0:01:33]} 1-0


[Site "https://www.chess.com"]

[Event "Titled Tuesday Blitz April 19 Late 2022"]
[White "Dauner, Benedikt"]
[Black "Yoo, Christopher Woojin"]
[WhiteFideId "16225899"]
[BlackFideId "30909694"]
[WhiteElo "2230"]
[BlackElo "2105"]
[Result "0-1"]
[Round "11"]
[TimeControl "180+1"]
[Date "2022.04.19"]
[WhiteClock "0:00:05"]
[BlackClock "0:00:23"]

1. d4 {[%clk 0:02:59]}  Nf6 {[%clk 0:03:00]} 2. Nc3 {[%clk 0:02:59]}  d5 {[%clk 0:02:59]} 3. Bf4 {[%clk 0:02:59]}  e6 {[%clk 0:03:00]} 4. Nb5 {[%clk 0:02:58]}  Bb4+ {[%clk 0:03:00]} 5. c3 {[%clk 0:02:58]}  Ba5 {[%clk 0:03:00]} 6. e3 {[%clk 0:02:53]}  a6 {[%clk 0:02:58]} 7. Na3 {[%clk 0:02:53]}  O-O {[%clk 0:02:53]} 8. Nf3 {[%clk 0:02:53]}  b5 {[%clk 0:02:22]} 9. Be2 {[%clk 0:02:51]}  Nbd7 {[%clk 0:02:20]} 10. O-O {[%clk 0:02:50]}  Bb7 {[%clk 0:02:21]} 11. h3 {[%clk 0:02:42]}  Bb6 {[%clk 0:02:20]} 12. Ne5 {[%clk 0:02:37]}  c5 {[%clk 0:02:17]} 13. Nb1 {[%clk 0:02:32]}  Nxe5 {[%clk 0:02:02]} 14. Bxe5 {[%clk 0:02:32]}  Nd7 {[%clk 0:02:00]} 15. Bg3 {[%clk 0:02:31]}  Qe7 {[%clk 0:01:57]} 16. Nd2 {[%clk 0:02:26]}  e5 {[%clk 0:01:56]} 17. dxc5 {[%clk 0:02:25]}  Nxc5 {[%clk 0:01:54]} 18. b4 {[%clk 0:02:08]}  Na4 {[%clk 0:01:52]} 19. Rc1 {[%clk 0:01:56]}  Rac8 {[%clk 0:01:44]} 20. Qb3 {[%clk 0:01:55]}  d4 {[%clk 0:01:42]} 21. cxd4 {[%clk 0:01:38]}  exd4 {[%clk 0:01:40]} 22. e4 {[%clk 0:01:24]}  Rc3 {[%clk 0:01:34]} 23. Rxc3 {[%clk 0:01:21]}  dxc3 {[%clk 0:01:33]} 24. Nc4 {[%clk 0:01:15]}  Bc7 {[%clk 0:01:01]} 25. Bxc7 {[%clk 0:00:26]}  Qxc7 {[%clk 0:01:02]} 26. Ne3 {[%clk 0:00:25]}  Bxe4 {[%clk 0:01:01]} 27. Rc1 {[%clk 0:00:20]}  Rd8 {[%clk 0:00:57]} 28. Bg4 {[%clk 0:00:10]}  g6 {[%clk 0:00:49]} 29. Be6 {[%clk 0:00:10]}  Qb7 {[%clk 0:00:32]} 30. Bg4 {[%clk 0:00:07]}  h5 {[%clk 0:00:29]} 31. Be2 {[%clk 0:00:07]}  Rd2 {[%clk 0:00:26]} 32. Bf1 {[%clk 0:00:07]}  Qc7 {[%clk 0:00:24]} 33. Nd5 {[%clk 0:00:05]}  Bxd5 {[%clk 0:00:23]} 0-1


[Site "https://www.chess.com"]

[Event "Titled Tuesday Blitz April 19 Late 2022"]
[White "Herrera Reyes, Jose Antonio"]
[Black "Oparin, Grigoriy"]
[WhiteFideId "2274914"]
[BlackFideId "24125890"]
[WhiteElo "2361"]
[BlackElo "2665"]
[Result "0-1"]
[Round "11"]
[TimeControl "180+1"]
[Date "2022.04.19"]
[WhiteClock "0:00:14"]
[BlackClock "0:00:14"]

1. e4 {[%clk 0:03:00]}  c5 {[%clk 0:02:59]} 2. Nc3 {[%clk 0:03:00]}  d6 {[%clk 0:02:58]} 3. d4 {[%clk 0:03:00]}  cxd4 {[%clk 0:02:58]} 4. Qxd4 {[%clk 0:03:01]}  Nc6 {[%clk 0:02:58]} 5. Qd2 {[%clk 0:03:01]}  g6 {[%clk 0:02:58]} 6. b3 {[%clk 0:03:01]}  Bh6 {[%clk 0:02:58]} 7. f4 {[%clk 0:03:01]}  e5 {[%clk 0:02:58]} 8. Nb5 {[%clk 0:02:53]}  Bxf4 {[%clk 0:02:44]} 9. Qxd6 {[%clk 0:02:48]}  Qxd6 {[%clk 0:02:44]} 10. Nxd6+ {[%clk 0:02:46]}  Kf8 {[%clk 0:02:45]} 11. Ba3 {[%clk 0:02:42]}  Nge7 {[%clk 0:02:45]} 12. Bc4 {[%clk 0:02:34]}  Be6 {[%clk 0:02:40]} 13. Bxe6 {[%clk 0:02:33]}  fxe6 {[%clk 0:02:41]} 14. Nxb7 {[%clk 0:02:33]}  Kf7 {[%clk 0:02:40]} 15. Nf3 {[%clk 0:02:32]}  g5 {[%clk 0:02:31]} 16. g3 {[%clk 0:02:32]}  g4 {[%clk 0:02:32]} 17. Nh4 {[%clk 0:02:06]}  Bg5 {[%clk 0:02:27]} 18. Rf1+ {[%clk 0:02:05]}  Kg7 {[%clk 0:02:26]} 19. Nc5 {[%clk 0:02:03]}  Nd4 {[%clk 0:02:19]} 20. Rd1 {[%clk 0:00:46]}  Bxh4 {[%clk 0:02:14]} 21. Rxd4 {[%clk 0:00:44]}  exd4 {[%clk 0:02:10]} 22. Nxe6+ {[%clk 0:00:44]}  Kh6 {[%clk 0:02:10]} 23. Bc1+ {[%clk 0:00:41]}  Kg6 {[%clk 0:02:00]} 24. gxh4 {[%clk 0:00:41]}  Rae8 {[%clk 0:01:24]} 25. h5+ {[%clk 0:00:39]}  Kxh5 {[%clk 0:01:21]} 26. Ng7+ {[%clk 0:00:33]}  Kg6 {[%clk 0:01:21]} 27. Nxe8 {[%clk 0:00:33]}  Rxe8 {[%clk 0:01:21]} 28. Kd2 {[%clk 0:00:31]}  Nc6 {[%clk 0:01:16]} 29. Kd3 {[%clk 0:00:30]}  Ne5+ {[%clk 0:01:07]} 30. Kxd4 {[%clk 0:00:29]}  Nf3+ {[%clk 0:01:06]} 31. Ke3 {[%clk 0:00:29]}  Nxh2 {[%clk 0:01:04]} 32. Rd1 {[%clk 0:00:29]}  Kh5 {[%clk 0:00:43]} 33. Kf4 {[%clk 0:00:25]}  Kh4 {[%clk 0:00:23]} 34. Ba3 {[%clk 0:00:17]}  g3 {[%clk 0:00:21]} 35. e5 {[%clk 0:00:16]}  g2 {[%clk 0:00:17]} 36. Bc5 {[%clk 0:00:16]}  Ng4 {[%clk 0:00:16]} 37. Kf5 {[%clk 0:00:14]}  Rxe5+ {[%clk 0:00:15]} 38. Kf4 {[%clk 0:00:14]}  Rxc5 {[%clk 0:00:16]} 39. c4 {[%clk 0:00:15]}  Rc8 {[%clk 0:00:15]} 40. Kf3 {[%clk 0:00:16]}  Kh3 {[%clk 0:00:14]} 41. Rd7 {[%clk 0:00:14]}  h5 {[%clk 0:00:14]} 0-1


[Site "https://www.chess.com"]

[Event "Titled Tuesday Blitz April 19 Late 2022"]
[White "Hnydiuk, Aleksander"]
[Black "Golubev, Mikhail"]
[WhiteFideId "1109057"]
[BlackFideId "14100983"]
[WhiteElo "2374"]
[BlackElo "2374"]
[Result "0-1"]
[Round "11"]
[TimeControl "180+1"]
[Date "2022.04.19"]
[WhiteClock "0:01:07"]
[BlackClock "0:02:07"]

1. e4 {[%clk 0:03:00]}  c5 {[%clk 0:02:59]} 2. Nf3 {[%clk 0:03:00]}  d6 {[%clk 0:02:59]} 3. d4 {[%clk 0:03:00]}  cxd4 {[%clk 0:02:59]} 4. Nxd4 {[%clk 0:03:01]}  Nf6 {[%clk 0:02:59]} 5. Nc3 {[%clk 0:03:01]}  g6 {[%clk 0:02:59]} 6. Be3 {[%clk 0:02:57]}  Bg7 {[%clk 0:02:59]} 7. f3 {[%clk 0:02:57]}  Nc6 {[%clk 0:02:59]} 8. Qd2 {[%clk 0:02:57]}  O-O {[%clk 0:02:59]} 9. O-O-O {[%clk 0:02:57]}  d5 {[%clk 0:02:58]} 10. exd5 {[%clk 0:02:51]}  Nxd5 {[%clk 0:02:58]} 11. Nxc6 {[%clk 0:02:52]}  bxc6 {[%clk 0:02:59]} 12. Bd4 {[%clk 0:02:52]}  Bxd4 {[%clk 0:02:55]} 13. Qxd4 {[%clk 0:02:51]}  Qb6 {[%clk 0:02:54]} 14. Na4 {[%clk 0:02:36]}  Qa5 {[%clk 0:02:54]} 15. b3 {[%clk 0:02:08]}  Qc7 {[%clk 0:02:53]} 16. Kb2 {[%clk 0:02:03]}  Bf5 {[%clk 0:02:31]} 17. h4 {[%clk 0:01:54]}  Nb6 {[%clk 0:02:26]} 18. Be2 {[%clk 0:01:09]}  Rfd8 {[%clk 0:02:16]} 19. Qb4 {[%clk 0:01:08]}  Nxa4+ {[%clk 0:02:07]} 20. Qxa4 {[%clk 0:01:07]}  Qe5+ {[%clk 0:02:07]} 0-1


[Site "https://www.chess.com"]

[Event "Titled Tuesday Blitz April 19 Late 2022"]
[White "Hoffmann, Asa"]
[Black "Nazaretyan, Tigran"]
[WhiteFideId "2001470"]
[BlackFideId "24162345"]
[WhiteElo "2117"]
[BlackElo "2225"]
[Result "1-0"]
[Round "11"]
[TimeControl "180+1"]
[Date "2022.04.19"]
[WhiteClock "0:00:59"]
[BlackClock "0:01:05"]

1. d4 {[%clk 0:02:54]}  Nf6 {[%clk 0:02:59]} 2. Bg5 {[%clk 0:02:53]}  d5 {[%clk 0:02:56]} 3. Nd2 {[%clk 0:02:53]}  Nbd7 {[%clk 0:02:55]} 4. c4 {[%clk 0:02:51]}  e6 {[%clk 0:02:52]} 5. e3 {[%clk 0:02:49]}  Be7 {[%clk 0:02:48]} 6. f4 {[%clk 0:02:49]}  c5 {[%clk 0:02:46]} 7. Ngf3 {[%clk 0:02:48]}  O-O {[%clk 0:02:36]} 8. Bd3 {[%clk 0:02:48]}  h6 {[%clk 0:02:36]} 9. Bh4 {[%clk 0:02:48]}  Ng4 {[%clk 0:02:36]} 10. Bxe7 {[%clk 0:02:45]}  Qxe7 {[%clk 0:02:36]} 11. Qe2 {[%clk 0:02:46]}  cxd4 {[%clk 0:02:32]} 12. exd4 {[%clk 0:02:45]}  dxc4 {[%clk 0:02:31]} 13. Bxc4 {[%clk 0:02:36]}  Nb6 {[%clk 0:02:28]} 14. Bb3 {[%clk 0:02:36]}  Bd7 {[%clk 0:02:21]} 15. O-O {[%clk 0:02:36]}  Qd6 {[%clk 0:02:12]} 16. h3 {[%clk 0:02:31]}  Nf6 {[%clk 0:02:10]} 17. Qe5 {[%clk 0:02:31]}  Qe7 {[%clk 0:02:03]} 18. f5 {[%clk 0:02:22]}  Rfe8 {[%clk 0:01:59]} 19. Rae1 {[%clk 0:02:21]}  Qd8 {[%clk 0:01:48]} 20. fxe6 {[%clk 0:01:54]}  Bxe6 {[%clk 0:01:48]} 21. Qg3 {[%clk 0:01:35]}  Bxb3 {[%clk 0:01:38]} 22. Nxb3 {[%clk 0:01:34]}  Qd5 {[%clk 0:01:35]} 23. Ne5 {[%clk 0:01:33]}  a5 {[%clk 0:01:29]} 24. Rxf6 {[%clk 0:01:31]}  a4 {[%clk 0:01:26]} 25. Rxf7 {[%clk 0:01:16]}  Qxf7 {[%clk 0:01:18]} 26. Nxf7 {[%clk 0:01:15]}  Rxe1+ {[%clk 0:01:13]} 27. Qxe1 {[%clk 0:01:15]}  axb3 {[%clk 0:01:13]} 28. Nxh6+ {[%clk 0:01:05]}  gxh6 {[%clk 0:01:12]} 29. Qe6+ {[%clk 0:01:05]}  Kg7 {[%clk 0:01:12]} 30. axb3 {[%clk 0:01:03]}  Ra6 {[%clk 0:01:05]} 31. Qe7+ {[%clk 0:01:00]}  Kg6 {[%clk 0:01:05]} 32. Qxb7 {[%clk 0:00:59]}  Ra1+ {[%clk 0:01:05]} 33. Kh2 {[%clk 0:00:59]} 1-0


[Site "https://www.chess.com"]

[Event "Titled Tuesday Blitz April 19 Late 2022"]
[White "Janturin, Artur"]
[Black "Petesch, Gabriel"]
[WhiteFideId "4130022"]
[BlackFideId "2032465"]
[WhiteElo "2406"]
[BlackElo "2524"]
[Result "0-1"]
[Round "11"]
[TimeControl "180+1"]
[Date "2022.04.19"]
[WhiteClock "0:00:02"]
[BlackClock "0:00:05"]

1. b3 {[%clk 0:03:00]}  Nf6 {[%clk 0:02:58]} 2. Bb2 {[%clk 0:03:01]}  g6 {[%clk 0:02:57]} 3. Bxf6 {[%clk 0:03:01]}  exf6 {[%clk 0:02:57]} 4. c4 {[%clk 0:03:02]}  d5 {[%clk 0:02:56]} 5. cxd5 {[%clk 0:03:02]}  Qxd5 {[%clk 0:02:54]} 6. Nc3 {[%clk 0:03:02]}  Qd8 {[%clk 0:02:54]} 7. g3 {[%clk 0:02:45]}  Bg7 {[%clk 0:02:51]} 8. Bg2 {[%clk 0:02:45]}  O-O {[%clk 0:02:52]} 9. Nf3 {[%clk 0:02:36]}  f5 {[%clk 0:02:51]} 10. O-O {[%clk 0:02:36]}  Re8 {[%clk 0:02:42]} 11. Rc1 {[%clk 0:02:36]}  c6 {[%clk 0:02:37]} 12. d4 {[%clk 0:02:33]}  Nd7 {[%clk 0:02:36]} 13. e3 {[%clk 0:02:32]}  Nb6 {[%clk 0:02:35]} 14. Qd3 {[%clk 0:02:28]}  a5 {[%clk 0:02:33]} 15. Rfd1 {[%clk 0:01:59]}  Be6 {[%clk 0:02:32]} 16. Nd2 {[%clk 0:01:48]}  a4 {[%clk 0:02:29]} 17. Nc4 {[%clk 0:01:45]}  axb3 {[%clk 0:02:26]} 18. axb3 {[%clk 0:01:46]}  Nd5 {[%clk 0:02:20]} 19. Nxd5 {[%clk 0:01:44]}  cxd5 {[%clk 0:02:14]} 20. Nd2 {[%clk 0:01:25]}  Qb6 {[%clk 0:02:14]} 21. Rc5 {[%clk 0:01:21]}  Bf8 {[%clk 0:02:11]} 22. Rxd5 {[%clk 0:00:56]}  Bxd5 {[%clk 0:02:08]} 23. Bxd5 {[%clk 0:00:57]}  Kg7 {[%clk 0:02:04]} 24. Nc4 {[%clk 0:00:51]}  Qb5 {[%clk 0:01:56]} 25. Bf3 {[%clk 0:00:38]}  Ra2 {[%clk 0:01:40]} 26. d5 {[%clk 0:00:37]}  Rd8 {[%clk 0:01:31]} 27. d6 {[%clk 0:00:32]}  Rd7 {[%clk 0:01:14]} 28. h4 {[%clk 0:00:25]}  Ra6 {[%clk 0:01:03]} 29. Qd4+ {[%clk 0:00:17]}  f6 {[%clk 0:00:57]} 30. Be2 {[%clk 0:00:14]}  Qb4 {[%clk 0:00:35]} 31. h5 {[%clk 0:00:14]}  gxh5 {[%clk 0:00:14]} 32. Bxh5 {[%clk 0:00:10]}  Qxb3 {[%clk 0:00:14]} 33. Qd5 {[%clk 0:00:09]}  Bxd6 {[%clk 0:00:07]} 34. Nxd6 {[%clk 0:00:05]}  Qxd5 {[%clk 0:00:05]} 35. Ne8+ {[%clk 0:00:02]}  Kf8 {[%clk 0:00:05]} 36. Rxd5 {[%clk 0:00:01]}  Rxd5 {[%clk 0:00:05]} 37. Nc7 {[%clk 0:00:02]}  Rd2 {[%clk 0:00:05]} 0-1


[Site "https://www.chess.com"]

[Event "Titled Tuesday Blitz April 19 Late 2022"]
[White "Jaskolka, Tomasz"]
[Black "Solon, Nathan"]
[WhiteFideId "1170791"]
[BlackFideId "2017229"]
[WhiteElo "2420"]
[BlackElo "2544"]
[Result "1-0"]
[Round "11"]
[TimeControl "180+1"]
[Date "2022.04.19"]
[WhiteClock "0:00:10"]
[BlackClock "0:00:07"]

1. d4 {[%clk 0:03:00]}  d5 {[%clk 0:02:57]} 2. Bf4 {[%clk 0:03:01]}  c5 {[%clk 0:02:56]} 3. e3 {[%clk 0:03:00]}  cxd4 {[%clk 0:02:55]} 4. exd4 {[%clk 0:03:01]}  Nc6 {[%clk 0:02:55]} 5. c3 {[%clk 0:03:01]}  f6 {[%clk 0:02:55]} 6. Nd2 {[%clk 0:02:58]}  e5 {[%clk 0:02:54]} 7. dxe5 {[%clk 0:02:58]}  fxe5 {[%clk 0:02:55]} 8. Bg3 {[%clk 0:02:58]}  Nf6 {[%clk 0:02:55]} 9. Ngf3 {[%clk 0:02:56]}  e4 {[%clk 0:02:55]} 10. Nd4 {[%clk 0:02:55]}  Nxd4 {[%clk 0:02:53]} 11. cxd4 {[%clk 0:02:56]}  Bd6 {[%clk 0:02:49]} 12. Bb5+ {[%clk 0:02:49]}  Ke7 {[%clk 0:02:49]} 13. Bh4 {[%clk 0:02:43]}  Qb6 {[%clk 0:02:40]} 14. Qe2 {[%clk 0:02:34]}  Qxd4 {[%clk 0:02:38]} 15. O-O {[%clk 0:02:26]}  a6 {[%clk 0:02:30]} 16. Nb3 {[%clk 0:01:56]}  Qe5 {[%clk 0:02:07]} 17. f4 {[%clk 0:01:28]}  exf3 {[%clk 0:01:50]} 18. Rxf3 {[%clk 0:01:27]}  Be6 {[%clk 0:01:33]} 19. Qxe5 {[%clk 0:00:59]}  Bxe5 {[%clk 0:01:32]} 20. Re1 {[%clk 0:00:58]}  axb5 {[%clk 0:00:38]} 21. Rxe5 {[%clk 0:00:57]}  Kf7 {[%clk 0:00:39]} 22. Nc5 {[%clk 0:00:49]}  Bc8 {[%clk 0:00:30]} 23. Rxd5 {[%clk 0:00:42]}  Rxa2 {[%clk 0:00:29]} 24. Rd6 {[%clk 0:00:38]}  Rxb2 {[%clk 0:00:20]} 25. Ne4 {[%clk 0:00:29]}  Re8 {[%clk 0:00:15]} 26. Nxf6 {[%clk 0:00:27]}  gxf6 {[%clk 0:00:15]} 27. Rdxf6+ {[%clk 0:00:26]}  Kg8 {[%clk 0:00:15]} 28. h3 {[%clk 0:00:24]}  Be6 {[%clk 0:00:13]} 29. Rg3+ {[%clk 0:00:21]}  Kh8 {[%clk 0:00:12]} 30. Rf4 {[%clk 0:00:10]}  h5 {[%clk 0:00:06]} 31. Bf6+ {[%clk 0:00:10]}  Kh7 {[%clk 0:00:07]} 32. Bxb2 {[%clk 0:00:10]} 1-0


[Site "https://www.chess.com"]